Cogmind - Beta 12 @@@ ROGUE MODE // 2023.10.08 @ 17:22:18 Player: Figgis Result: Core destroyed Performance ------------- Evolutions (3) 1500 Regions Visited (6) 1200 Robots Destroyed (105) 525 Value Destroyed (3380) 3380 Prototype IDs (6) 120 Alien Tech Used (0) 0 Bonus (109) 109 TOTAL SCORE: 6834 Bonus ------- High Alert Combat Kills 45 Follower Combat Kills 82 Friendly Fire -18 Cogmind --------- Core Integrity 0/700 Matter 23/300 Energy 299/310 System Corruption 3% Temperature Critical (515) Movement Walking (820) Ox10 Location -7/Factory Parts ------- > --- POWER (2) -------- Heavy Deuterium Engine > --- PROPULSION (5) --- Aluminum Leg > --- UTILITY (4) ------ Huge Storage Unit Advanced Targeting Computer Improved Light Armor Plating Improved Light Armor Plating > --- WEAPON (2) ------- Assault Cannon Assault Cannon > --- INVENTORY (25) --- Deuterium Engine Deuterium Engine Deuterium Engine Nuclear Core Improved Carbon-fiber Leg Improved Carbon-fiber Leg Improved Carbon-fiber Leg Armored Huge Wheel Armored Huge Wheel Improved Heat Sink Improved Heat Sink High-capacity Battery (250) High-capacity Matter Pod (200) High-capacity Matter Pod (200) Improved Light Armor Plating Improved Light Armor Plating Drone Bay (2/2) Drone Bay (2/2) Arc Projector Heavy Particle Cannon Ion Cannon Peak State ------------ > --- POWER ------------ Deuterium Engine Heavy Deuterium Engine > --- PROPULSION ------- Aluminum Leg Aluminum Leg Aluminum Leg Aluminum Leg Aluminum Leg > --- UTILITY ---------- Huge Storage Unit Advanced Weight Redist. System Advanced Targeting Computer Improved Light Armor Plating > --- WEAPON ----------- Gauss Rifle Assault Cannon > --- INVENTORY -------- Deuterium Engine Deuterium Engine Deuterium Engine Nuclear Core Aluminum Leg Improved Carbon-fiber Leg Wheel Armored Huge Wheel Armored Huge Wheel Improved Heat Sink High-capacity Battery High-capacity Matter Pod High-capacity Matter Pod Improved Light Armor Plating Improved Light Armor Plating Improved Light Armor Plating Improved Light Armor Plating Drone Bay Drone Bay Heavy Particle Cannon Ion Cannon Assault Cannon Assault Cannon [Rating: 37] Favorites ----------- Power Deuterium Engine Engine Deuterium Engine Power Core Light Nuclear Core Propulsion Aluminum Leg Treads Light Treads Leg Aluminum Leg Wheel Compact Wheel Utility Huge Storage Unit Device Shield Generator Storage Huge Storage Unit Processor Advanced Targeting Computer Protection Improved Light Armor Plating Weapon Assault Cannon Energy Gun Improved Medium Laser Energy Cannon Ion Cannon Ballistic Gun Gauss Rifle Ballistic Cannon Assault Cannon Launcher Rocket Launcher Build | -11 -10 -10 -9 -9 -8 -7 ------- Run | Jun Mat Min Mat Sto Mat Fac Slots Evolved 6 | . . . 2 . 2 2 Power 1 | . . . . . . 1 Propulsion 3 | . . . 1 . 1 1 Utility 2 | . . . 1 . 1 . Weapon . | . . . . . . . Parts Attached 107 | 7 14 4 7 28 35 12 Power 13 | 1 3 . . 3 4 2 Engine 12 | 1 2 . . 3 4 2 Core 1 | . 1 . . . . . Reactor . | . . . . . . . Propulsion 40 | 3 6 . 5 9 12 5 Treads 1 | 1 . . . . . . Leg 32 | 2 4 . 3 6 12 5 Wheel 7 | . 2 . 2 3 . . Hover . | . . . . . . . Flight . | . . . . . . . Utility 23 | 1 3 . 2 7 7 3 Device 9 | . 2 . 2 3 2 . Storage 2 | 1 1 . . . . . Processor 1 | . . . . . . 1 Hackware . | . . . . . . . Protection 11 | . . . . 4 5 2 Artifact . | . . . . . . . Weapon 31 | 2 2 4 . 9 12 2 Energy Gun 10 | 1 . 1 . 4 4 . Energy Cannon 8 | . . 1 . 4 3 . Ballistic Gun 6 | 1 2 1 . . 2 . Ballistic Cannon 6 | . . . . 1 3 2 Launcher 1 | . . 1 . . . . Special Weapon . | . . . . . . . Impact Weapon . | . . . . . . . Slashing Weapon . | . . . . . . . Piercing Weapon . | . . . . . . . Special Melee Weapon . | . . . . . . . Unidentified Prototypes 6 | . . . . 4 1 1 Parts Lost 30 | . . . . 11 9 10 Power 3 | . . . . 1 1 1 Propulsion 14 | . . . . 3 4 7 Utility 7 | . . . . 6 1 . Weapon 6 | . . . . 1 3 2 Highest Loss Streak 6 | . . . . 3 3 6 To Critical Strikes . | . . . . . . . Average Slot Usage (%) 97 | . 98 100 97 92 97 99 Engine 9 | . 9 . . 10 8 14 Core 2 | . 4 14 11 . . . Leg 25 | . 23 . 11 19 34 37 Wheel 6 | . 4 28 20 9 . . Device 10 | . 13 14 20 10 8 6 Storage 10 | . 14 14 11 11 9 7 Processor 1 | . . . . . . 6 Protection 8 | . . . . 9 17 7 Energy Gun 5 | . 3 8 11 8 5 . Energy Cannon 4 | . . 13 11 8 3 . Ballistic Gun 6 | . 24 3 . . 4 6 Ballistic Cannon 4 | . . . . 4 5 7 Naked Turns . | . . . . . . . Heaviest Build 114 | 14 93 97 96 104 110 114 Greatest Support 62 | 20 32 32 41 41 58 62 Greatest Overweight (x) 32 | 2 5 3 2 32 10 2 Average Overweight (x) 2 | . . 2 2 6 1 1 Largest Inventory Capacity 25 | 8 25 25 25 25 25 25 Average Capacity 23 | 6 12 25 25 25 25 25 Most Carried 25 | 5 12 23 24 25 25 25 Average Carried 21 | 2 7 19 22 24 24 24 Final Capacity 25 | 8 25 25 25 25 25 25 Final Carried 25 | 2 12 23 23 24 25 23 Class Distribution -------------------- 58% | Mutant 41% | Scavenger-Mutant Dominant Class ---------------- Mutant | -10/Materials Mutant | -10/Mines Mutant | -9/Materials Mutant | -9/Storage Mutant | -8/Materials Scavenger-Mutant | -7/Factory Resources | -11 -10 -10 -9 -9 -8 -7 ----------- Run | Jun Mat Min Mat Sto Mat Fac Matter Collected 2613 | 228 511 137 158 430 722 427 Remotely . | . . . . . . . Salvage Created 3965 | . 889 140 . 996 1344 596 Parts 221 | . 39 8 . 65 67 42 Haulers Intercepted 4 | . 1 . . 2 1 . Recyclers Shooed 3 | . . . . . . 3 Parts Field Recycled . | . . . . . . . Retrieved Matter . | . . . . . . . Parts Self-Destructed . | . . . . . . . Prevented . | . . . . . . . Kills | -11 -10 -10 -9 -9 -8 -7 ------- Run | Jun Mat Min Mat Sto Mat Fac Combat Hostiles Destroyed 85 | . 17 4 . 25 27 12 Guns 43 | . 16 1 . 8 14 4 Cannons 41 | . . 3 . 17 13 8 AOE 1 | . 1 . . . . . Classes Destroyed 12 | . 5 1 . 2 2 2 Worker 1 | . . . . 1 . . Builder 3 | . 1 . . 1 . 1 Hauler 4 | . 1 . . 2 1 . Recycler 5 | . 1 . . 1 2 1 Mechanic 1 | . . . . . . 1 Watcher 6 | . 2 . . 1 2 1 Swarmer 18 | . . 1 . 11 6 . Grunt 47 | . 17 3 . 5 13 9 Brawler 1 | . . . . . 1 . Sentry 15 | . . . . 9 6 . Hunter 1 | . . . . . 1 . Programmer 3 | . . . . . . 3 Best Kill Streak 9 | . 9 2 . 6 5 4 Combat Bots Only 8 | . 8 2 . 6 5 3 Max Kills in Single Turn 2 | . 1 1 . 2 1 1 Gunslinging . | . . . . . . . Exploded 1 | . 1 . . . . . Melee . | . . . . . . . Uniques/NPCs Destroyed . | . . . . . . . Combat | -11 -10 -10 -9 -9 -8 -7 -------- Run | Jun Mat Min Mat Sto Mat Fac Damage Taken 5943 | . 469 169 . 1536 1800 1969 Core 1257 | . 92 22 . 312 114 717 Absorbed by Shields 508 | . 41 63 . 404 . . Regen/Repaired (Parts) 29 | . . . 29 . . . Core Remaining (%) 63 | 100 . 54 . 22 79 . Volleys Fired 314 | . 48 10 1 83 115 57 Largest 2 | . 2 2 1 2 2 2 Hottest 128 | . 60 125 60 128 119 88 Shots Fired 586 | . 95 15 1 156 205 114 Gun 310 | . 95 5 . 64 107 39 Cannon 276 | . . 10 1 92 98 75 Launcher . | . . . . . . . Special . | . . . . . . . Kinetic 357 | . 79 . . 42 122 114 Thermal 176 | . . 15 1 102 58 . Explosive . | . . . . . . . Electromagnetic 53 | . 16 . . 12 25 . Robot Hit Streak 13 | . 11 9 . 13 12 11 Robot Miss Streak 8 | . 8 1 1 5 4 5 Penetration Max . | . . . . . . . Secondary Targets 1 | . . . . . 1 . Max Gunslinging Chain 1 | . . . . . 1 . Shots Hit Robots 353 | . 66 11 . 88 128 60 Core Hits 161 | . 42 5 . 36 52 26 Critical Kills . | . . . . . . . Critical Parts Destroyed 1 | . . . . . 1 . Critical Strikes 14 | . . . . 4 7 3 Burn 2 | . . . . 1 1 . Destroy 1 | . . . . . 1 . Blast 10 | . . . . 3 4 3 Corrupt 1 | . . . . . 1 . Melee Attacks . | . . . . . . . Impact . | . . . . . . . Slashing . | . . . . . . . Piercing . | . . . . . . . Sneak Attacks . | . . . . . . . Combat Hostiles . | . . . . . . . Follow-up Attacks . | . . . . . . . Damage Inflicted 7642 | . 1071 243 . 1971 2736 1621 Guns 3337 | . 986 79 . 653 1141 478 Cannons 4108 | . . 164 . 1219 1582 1143 Explosions 184 | . 85 . . 99 . . Melee . | . . . . . . . Ramming 13 | . . . . . 13 . Kinetic 4651 | . 834 . . 602 1594 1621 Thermal 2418 | . 85 243 . 1224 866 . Explosive . | . . . . . . . Electromagnetic 560 | . 152 . . 145 263 . Impact . | . . . . . . . Slashing . | . . . . . . . Piercing . | . . . . . . . Highest Corruption 3 | . 1 1 2 2 . 3 Average Corruption 1 | . 1 1 1 2 . 1 Corruption Purged . | . . . . . . . Corruption Blocked . | . . . . . . . Effects 37 | . 6 2 2 24 . 3 Message Errors 11 | . 3 . 1 6 . 1 Matter Fused 9 | . 1 1 . 6 . 1 Heat Flow Errors 5 | . . . 1 4 . . Energy Discharges 4 | . . 1 . 3 . . Parts Rejected 1 | . . . . . . 1 Data Loss (minor) 2 | . . . . 2 . . Data Loss (major) 2 | . 1 . . 1 . . Alerts 1 | . . . . 1 . . Weapon Failures 2 | . 1 . . 1 . . Overload Shots . | . . . . . . . Overflow Damage 95 | . 10 . . 66 . 19 Projectiles 85 | . . . . 66 . 19 Explosions 10 | . 10 . . . . . Melee . | . . . . . . . Knockbacks 26 | . . . . 4 5 17 Impact . | . . . . . . . Kinetic 20 | . . . . 3 4 13 Secondary 6 | . . . . 1 1 4 Self-Inflicted Damage . | . . . . . . . Shots . | . . . . . . . Rammed . | . . . . . . . Targets Rammed 4 | . . . . . 4 . Kicked 4 | . . . . . 4 . Crushed . | . . . . . . . Highest Temperature 566 | . 49 237 229 396 401 566 Average Temperature 115 | . 14 97 107 109 111 164 Received Heat Transfer 2097 | . 294 78 . 429 675 621 Effects 35 | . . . . 5 7 23 Shutdowns 7 | . . . . 1 2 4 Energy Bleed 2 | . . . . 1 . 1 Interference 9 | . . . . 3 4 2 Matter Decay 2 | . . . . . . 2 Short Circuit 1 | . . . . . . 1 Damage (minor) 3 | . . . . . 1 2 Damage (major) 7 | . . . . . . 7 Damage (core) 4 | . . . . . . 4 Siege Activations . | . . . . . . . Robots Corrupted . | . . . . . . . Combat Hostiles . | . . . . . . . Parts Fried 2 | . 1 . . 1 . . Impact Corruptions 1 | . . . . 1 . . Robots Melted . | . . . . . . . Combat Hostiles . | . . . . . . . Parts Melted 8 | . . . . 3 5 . Heat Transferred 4357 | . 100 444 . 2333 1480 . Parts Sabotaged . | . . . . . . . Parts Stolen . | . . . . . . . Parts Stripped . | . . . . . . . Power Chain Reactions 2 | . 1 . . 1 . . Missiles Intercepted . | . . . . . . . Alert | -11 -10 -10 -9 -9 -8 -7 ------- Run | Jun Mat Min Mat Sto Mat Fac Peak Influence 576 | . 348 159 81 576 462 251 Initial 213 | . . 79 22 33 213 194 Average 179 | . 170 91 44 154 290 140 Maximum Alert Level 2 | . 1 . . 2 2 1 Low Security (%) 62 | 100 70 100 100 73 9 86 Level 1 32 | . 29 . . 9 86 13 Level 2 5 | . . . . 16 4 . Level 3 . | . . . . . . . Level 4 . | . . . . . . . Level 5 . | . . . . . . . High Security . | . . . . . . . Max Security . | . . . . . . . Squads Dispatched 21 | . 5 . . 5 5 6 Investigation 8 | . 4 . . . 2 2 Extermination 2 | . . . . . . 2 Reinforcement 7 | . 1 . . 1 3 2 Assault 1 | . . . . 1 . . Garrison 3 | . . . . 3 . . Intercept . | . . . . . . . Searches Triggered . | . . . . . . . Construction Impeded 3 | . . . . . 2 1 Haulers Reinforced 1 | . . . . . . 1 Active Scanning Responses . | . . . . . . . Cargo Convoy Interrupts 1 | . . . . . . 1 Stealth | -11 -10 -10 -9 -9 -8 -7 --------- Run | Jun Mat Min Mat Sto Mat Fac Distress Signals 6 | . . . . 3 2 1 Communications Jammed . | . . . . . . . Distress Signals . | . . . . . . . Times Spotted 128 | . 25 4 1 44 34 20 Peak Tracking Total 7 | . 4 2 1 7 5 4 Tactical Retreats 9 | . 1 . . 6 2 . Traps | -11 -10 -10 -9 -9 -8 -7 ------- Run | Jun Mat Min Mat Sto Mat Fac Traps Triggered 12 | . 3 2 2 . 2 3 Indirectly . | . . . . . . . Trap Hack Attempts . | . . . . . . . Triggered . | . . . . . . . Disarmed . | . . . . . . . Reprogrammed . | . . . . . . . Reused . | . . . . . . . Traps Extracted . | . . . . . . . Installed . | . . . . . . . Triggered 2 | . . . . . . 2 Machines | -11 -10 -10 -9 -9 -8 -7 ---------- Run | Jun Mat Min Mat Sto Mat Fac Machines Disabled 10 | . 1 . . 4 4 1 Max in Single Turn 2 | . 1 . . 2 1 1 Machines Repaired . | . . . . . . . Machines Sabotaged . | . . . . . . . Overloaded Fab Kills . | . . . . . . . Hacking | -11 -10 -10 -9 -9 -8 -7 --------- Run | Jun Mat Min Mat Sto Mat Fac Machines Accessed 25 | . 6 1 2 6 4 6 Terminals 21 | . 6 . 1 6 4 4 Fabricators 1 | . . . . . . 1 Repair Stations 1 | . . . 1 . . . Recycling Units . | . . . . . . . Scanalyzers 1 | . . . . . . 1 Garrison Access . | . . . . . . . Total Hacks 52 | . 13 1 3 11 12 12 Successful 23 | . 3 1 2 7 3 7 Failed 29 | . 10 . 1 4 9 5 Catastrophic 10 | . 3 . 1 1 2 3 Database Lockouts . | . . . . . . . Manual 19 | . 13 . 1 . 5 . Terminals 41 | . 13 . 1 11 12 4 Fabricators 3 | . . . . . . 3 Repair Stations 2 | . . . 2 . . . Recycling Units . | . . . . . . . Scanalyzers 5 | . . . . . . 5 Garrison Access . | . . . . . . . Terminal Hacks 14 | . 3 1 . 7 3 . Robot Analysis 4 | . 2 . . 2 . . Open Door 4 | . . 1 . 3 . . Branch Access Points 1 | . 1 . . . . . Emergency Access Points 1 | . . . . . 1 . Unreport Threat 1 | . . . . . 1 . Reinforcement Status 1 | . . . . 1 . . Recall Investigation 1 | . . . . . 1 . Zone Layout 1 | . . . . 1 . . Fabricator Hacks 3 | . . . . . . 3 Network Status 1 | . . . . . . 1 Load Schematic 1 | . . . . . . 1 Build 1 | . . . . . . 1 Repair Station Hacks 2 | . . . 2 . . . Scan Component 1 | . . . 1 . . . Repair 1 | . . . 1 . . . Recycling Unit Hacks . | . . . . . . . Scanalyzer 4 | . . . . . . 4 Insert Component 1 | . . . . . . 1 Analyze 3 | . . . . . . 3 Garrison Access Hacks . | . . . . . . . Unauthorized Hacks . | . . . . . . . Terminals . | . . . . . . . Fabricators . | . . . . . . . Repair Stations . | . . . . . . . Recycling Units . | . . . . . . . Scanalyzers . | . . . . . . . Garrison Access . | . . . . . . . Data Cores Recovered . | . . . . . . . Used . | . . . . . . . Hacking Detections 22 | . 5 . 2 5 4 6 Full Trace Events 5 | . 3 . . . 1 1 Feedback Events . | . . . . . . . Feedback Blocked . | . . . . . . . Robot Schematics Acquired . | . . . . . . . Robots Built . | . . . . . . . Authchips . | . . . . . . . Time . | . . . . . . . Total Robot Build Rating . | . . . . . . . Part Schematics Acquired 1 | . . . . . . 1 Parts Built 2 | . . . . . . 2 Authchips . | . . . . . . . Time 84 | . . . . . . 84 Total Part Build Rating 8 | . . . . . . 8 Parts Repaired 1 | . . . 1 . . . Time 16 | . . . 16 . . . Parts Recycled . | . . . . . . . Recycled Matter . | . . . . . . . Retrieved Matter . | . . . . . . . Retrieved Components . | . . . . . . . Parts Scanalyzed 1 | . . . . . . 1 Part Schematics Acquired 1 | . . . . . . 1 Parts Damaged . | . . . . . . . Bothacking | -11 -10 -10 -9 -9 -8 -7 ------------ Run | Jun Mat Min Mat Sto Mat Fac Used RIF Installer . | . . . . . . . Robots Hacked . | . . . . . . . Non-combat . | . . . . . . . Combat . | . . . . . . . Robot Hacks Applied . | . . . . . . . Relay Couplers Released . | . . . . . . . Fabnet Peak Effective % . | . . . . . . . Robots Rewired . | . . . . . . . Allies Hacked . | . . . . . . . Hacks Repelled . | . . . . . . . Allies | -11 -10 -10 -9 -9 -8 -7 -------- Run | Jun Mat Min Mat Sto Mat Fac Total Allies 3 | . . 3 . . . . Largest Group 3 | . . 3 2 2 . . Highest-Rated Group 40 | . . 40 32 32 . . Highest-Rated Ally 16 | . . 16 16 16 . . Total Orders . | . . . . . . . Ally Attacks 25 | . . 8 3 14 . . Total Damage 225 | . . 45 26 154 . . Kills 4 | . . 2 1 1 . . Allies Corrupted . | . . . . . . . Allies Melted . | . . . . . . . Intel | -11 -10 -10 -9 -9 -8 -7 ------- Run | Jun Mat Min Mat Sto Mat Fac Robot Analysis Total 4 | . 2 . . 2 . . Derelict Logs Recovered 1 | . . 1 . . . . Drone Launches 2 | . . . . . 2 . Drone Recoveries 2 | . . . . . 2 . Exploration | -11 -10 -10 -9 -9 -8 -7 ------------- Run | Jun Mat Min Mat Sto Mat Fac Turns Passed 6017 | 55 871 549 158 1636 1563 1185 Spaces Moved 2553 | 47 479 372 99 577 503 476 Core 34 | 30 . . . 4 . . Treads . | . . . . . . . Legs 1386 | 17 373 . . 47 473 476 Wheels 1133 | . 106 372 99 526 30 . Hover . | . . . . . . . Flight . | . . . . . . . Fastest Speed 50 | 50 120 130 130 130 190 190 Average Speed 178 | 83 133 132 130 218 213 192 Slowest Speed 1650 | 150 400 145 130 1650 260 260 Overloaded Moves . | . . . . . . . Propulsion Burnouts . | . . . . . . . Robots Hopped . | . . . . . . . Cave-ins Triggered . | . . . . . . . Exploration Rate (%) 41 | 3 89 68 13 64 43 9 Regions Visited 6 Branch Regions 2 Pre-discovered Areas . | . . . . . . . Known Exits Taken 2 | . 1 . 1 . . . Unknown Exits Taken 4 | 1 . 1 . 1 1 . Scrap Searched 1 | . . 1 . . . . Spaces Dug . | . . . . . . . Terrain Destroyed 34 | . 3 . 1 8 19 3 Melee . | . . . . . . . Projectile 29 | . . . 1 6 19 3 AOE 5 | . 3 . . 2 . . Terrain Rammed . | . . . . . . . Walls Destroyed . | . . . . . . . Machines Disabled . | . . . . . . . Actions | -11 -10 -10 -9 -9 -8 -7 --------- Run | Jun Mat Min Mat Sto Mat Fac Total 3438 | 62 618 410 125 805 784 634 Wait 299 | . 49 12 16 72 79 71 Move 2547 | 46 478 371 98 576 502 476 Hop . | . . . . . . . Pick Up 97 | 7 15 12 3 23 27 10 Fast Attach 17 | 3 3 . . 6 4 1 Attach 41 | 4 2 . 3 13 11 8 Detach 1 | . . . . 1 . . Swap 49 | . 9 4 4 9 20 3 Drop 69 | 2 14 1 . 22 22 8 Fire 314 | . 48 10 1 83 115 57 Melee . | . . . . . . . Ram . | . . . . . . . Kick 4 | . . . . . 4 . Crush . | . . . . . . . Escape Stasis . | . . . . . . . Rewire . | . . . . . . . Trap . | . . . . . . . Miscellaneous . | . . . . . . . Route ------- -11/Junkyard -10/Materials (discovered 4 exits: *Mat x2 / *Min x2) -10/Mines -9/Materials (discovered 2 exits: *Sto x2) -9/Storage -8/Materials -7/Factory History --------- Turn | Location | Event 20 | -11/Junkyard | Discovered new exit (range 15) 56 | -11/Junkyard | Entered Materials 56 | -10/Materials | Discovered new exit (range 15) 228 | -10/Materials | Discovered new exit (range 10) 322 | -10/Materials | Build established: Mutant 401 | -10/Materials | Discovered new exit (range 12) 464 | -10/Materials | Identified exit to Mines 711 | -10/Materials | Destroyed 8 combat bots 927 | -10/Materials | Entered Mines 934 | -10/Mines | Met a Derelict who couldn't figure out how to use a Trap Extractor 1013 | -10/Mines | Received a Rocket Launcher from a helpful Derelict 1019 | -10/Mines | Learned location of 1 exit from Materials 1310 | -10/Mines | Assisted by bots powering up and referring to "LRC-V3" 1331 | -10/Mines | Discovered new exit (range 9) 1476 | -10/Mines | Entered Materials 1476 | -9/Materials | Accompanied by 2 allies 1476 | -9/Materials | Evolved 2 slots: Propulsion x1, Utility x1 1477 | -9/Materials | Identified exit to Storage 1568 | -9/Materials | Discovered exit to Storage (range 7) 1605 | -9/Materials | Repaired Shield Generator 1634 | -9/Materials | Entered Storage 1634 | -9/Storage | Accompanied by 2 allies 1760 | -9/Storage | Lost 3 parts (1p1n1u) 2505 | -9/Storage | Build established: Scavenger-Mutant 2894 | -9/Storage | Garrison activated, responded to threat 2903 | -9/Storage | Core integrity fell below 50% 3144 | -9/Storage | Build established: Mutant 3147 | -9/Storage | Lost 3 parts (1n2u) 3234 | -9/Storage | First assault squad dispatched 3234 | -9/Storage | Discovered new exit (range 16) 3270 | -9/Storage | Entered Materials 3270 | -8/Materials | Evolved 2 slots: Propulsion x1, Utility x1 4313 | -8/Materials | Lost 3 parts (3n) 4573 | -8/Materials | Build established: Scavenger-Mutant 4755 | -8/Materials | Discovered new exit (range 9) 4833 | -8/Materials | Entered Factory 4833 | -7/Factory | Evolved 2 slots: Power x1, Propulsion x1 5691 | -7/Factory | Cargo convoy interrupted 5899 | -7/Factory | Fabricated Imp. Carbon-fiber Leg (x2) 6006 | -7/Factory | Core integrity fell below 50% 6016 | -7/Factory | Core integrity fell below 20% 6019 | -7/Factory | Core destroyed Last Messages --------------- 06009_ K-01 Serf cleans the Fusion Modulator. 06009_ R-06 Scavenger collects Aluminum Leg. 06010_ Overheating: Core damaged (-105). 06010_ Aluminum Leg destroyed. 06011_ Overheating: Aluminum Leg damaged (-1). 06011_ Overheating: Assault Cannon damaged (-67). 06011_ Overheating: Imp. Light Armor Plating damaged (-18). 06012_ Overheating: Huge Storage Unit damaged (-148). 06012_ K-01 Serf cleans the Fusion Modulator. 06013_ Overheating: Broken Adv. Targeting Computer damaged (-1). 06013_ U-05 Engineer builds a Wall. 06014_ Overheating: Energy bleed (-43). 06014_ Aluminum Leg destroyed. 06014_ G-47 Trooper knocked back. 06015_ Power failure, Hvy. Deuterium Engine shutdown. 06016_ Overheating: Core damaged (-70). 06017_ K-01 Serf cleans the Fusion Modulator. 06018_ Overheating: System interference. 06018_ Assault Cannon temporarily disabled. 06019_ Overheating: Core damaged (-105). Map ----- +----------------------------------------------------+ | ???????????????# #????????????????????? | | ???????????????# """"""" #????????????????????? | | ???????????????# """"""" #????????????????????? | | ???????????????# """"""" #???#########????????? | | ???????????????# """"""" #???# [ #????????? | | ???????????????# #???#"S #????????? | | ???????????????# #???#""" #????????? | | ?????????###########+#+#+##/#???# "" #????????? | | ?????????# + #???# #????????? | | ######### # #???# """"" #????????? | | ^ + # #???# """"" #????????? | | ######### + #???# """ #????????? | | ?????????#= # """ #???# #????????? | | ?????????# # """ #???# """"" #????????? | | ?????????# # """ ##### """"" #????????? | | ?????????# # "" # """ #????????? | | ?????????########### "" # #???? ??? | | ???????????????????# + """"" #??? ??? | | ???????????????????# * # """"" +?? ?? | | ???????????????????# " "" #? ?? | | ???????????????????######## # # ? | | ????????????############### ######### ?? | | ????????????# """" k%%%# % ^% ? | | ????????????# "F " """%# ^% ? | | ????????????# ! """!# r ^%% | | ????????????# """@rg ^% | | ????????????# =%=# % k ^ | | ??????? ???# ![%%#%% ###+##########???? | | ??????? ??############### # #??????? | | ???????? ?# % # #??????? | | ????????? # # #??????? | | ?????????? # # #??????? | | ??????????? + # #??????? | | ????????????# # ! [ #??????? | | ????????????# ##### #??????? | | ############# #???# #??????? | | #???###########??????? | | #????????????????????? | | ####?????????????????? | | #?????????????????? | | #?????????????????? | | +#############+##### T## #?????????????????? | | #??# #####"" * #?????????????????? | | "" #??#"" """" #???#"" * #?????????????????? | | """ Y" #??#"" """" #???#"" = #?????????????????? | | """ "" #??#"" """" #???#T #########?????????? | | """ #??#T """" #???#"" ??? | | """ #??#"" """" #???#"" ??? | | #??#"" """" ????#"" ??? | | #??#"" """" ????# ???? | +----------------------------------------------------+ Best States ------------- Heat Dissipation 34 Energy Generation 27 Energy Capacity 485 Matter Stores 300 Matter Capacity 300 Sight Range 16 Terrain Scan Density 10 Additional Mass Support 9 Armor Coverage 375 Evasion (%) 55 Targeting Accuracy 8 Item Schematics ----------------- Imp. Carbon-fiber Leg | -7/Factory | Scanalyzed Robot Schematics ------------------ None Fabricated ------------ Imp. Carbon-fiber Leg | x2 | -7/Factory Alien Tech Used ----------------- None Achievements -------------- Party Time Challenges ------------ None Game ------ Seed HeavyGravityChronowheel Manual? 0 Play Time 00:44:22 Cumulative 33.7 hours Start 2023.10.08 @ 16:36:46 End 2023.10.08 @ 17:22:18 Sessions 1 Manual Loads 0 Difficulty Rogue Special Mode None Game No. 65 Rogue 62 Adventurer 3 Explorer 0 Win Type - Total 0 Types 0/0/0/0/0/0/0/0/0 Lore% 22 Gallery% 36 Achievement% 25 Wizard Run 0 Options --------- ASCII 0 Keyboard 0 Movement Mouse Keybinds 0 Fullscreen 2 Font 18/SmallcapsGlow Map View 76x50 Tactical HUD 1 Map Filters NONE Filters NONE Steam 1 RUN: 0ee140fe-ca6d-4994-9e5f-2a82e21aea6f